bitfinex-derivatives/quotes_SOLF0:USTF0_20250522
["timestamp","ask_amount","ask_price","bid_price","bid_amount"]
[1747920883695,153.1,177.6,177.52,0.0430348]
[1747920884487,0.04319575,177.58,177.52,0.0430348]
[1747920884696,0.03754843,177.57,177.53,0.03664702]
[1747920884899,0.03751452,177.57,177.53,0.04009344]
[1747920885193,153.1,177.65,177.54,153.1]
[1747920885394,153.1,177.65,177.55,1.9716]
[1747920885694,153.1,177.65,177.5,153.14]
[1747920886087,5.6311,177.57,177.56,0.03849335]
[1747920886293,0.04176027,177.59,177.56,0.03849335]
[1747920887689,5.631,177.57,177.56,0.03849335]
[1747920887888,0.04176027,177.59,177.56,0.03849335]
[1747920888401,153.14,177.63,177.58,5.6307]
[1747920888599,639.18,177.68,177.56,0.03849335]
[1747920888791,639.18,177.68,177.6,5.6299]
[1747920888987,639.18,177.68,177.56,4.009]
[1747920889187,5.6287,177.65,177.56,4.009]
[1747920889393,0.03901915,177.62,177.6,5.6298]
[1747920889593,0.03901915,177.62,177.59,0.03729624]
[1747920889995,0.03901915,177.62,177.61,5.6298]
[1747920890292,5.6279,177.67,177.59,0.03729624]
[1747920890497,153.16,177.68,177.59,0.03729624]
[1747920890699,153.16,177.72,177.59,0.03729624]
[1747920890893,181.27351135,177.72,177.56,4.009]
[1747920891093,0.0359825,177.66,177.62,0.0354032]
[1747920891292,0.0359825,177.66,177.5,1.9439]
[1747920891293,153.16,177.65,177.5,1.9439]
[1747920891893,0.087,177.71,177.5,1.9439]
[1747920892103,153.16,177.68,177.5,1.9439]
[1747920892293,0.03883027,177.61,177.57,0.04141406]
[1747920892499,5.66863027,177.61,177.57,0.03827415]
[1747920892694,0.03883027,177.61,177.57,0.03827415]
[1747920893604,5.6307,177.58,177.57,0.03827415]
[1747920894002,0.03883027,177.61,177.57,0.03827415]
[1747920894297,5.66893027,177.61,177.57,0.03827415]
[1747920894503,5.66893027,177.61,177.57,2.01027415]
[1747920894797,0.03883027,177.61,177.57,2.01027415]
[1747920894994,0.087,177.71,177.58,2.0198]
[1747920895199,5.6283,177.66,177.61,5.6297]
[1747920895394,153.2,177.71,177.62,1.8844]
[1747920895993,0.04010856,177.68,177.65,0.03992132]
[1747920896398,5.6282,177.66,177.65,0.03992132]
[1747920896703,0.04010856,177.68,177.65,0.03992132]
[1747920897002,5.6282,177.66,177.65,0.03992132]
[1747920898499,5.6282,177.66,177.65,2.132e-05]
[1747920898999,5.6307,177.59,177.57,1.972]
[1747920899204,153.18,177.66,177.57,1.972]
[1747920899402,153.18,177.66,177.54,1.9422]
[1747920899607,5.6317,177.55,177.54,1.9422]
[1747920899807,181.29351135,177.66,177.54,1.9422]
[1747920900006,0.04061556,177.62,177.58,0.04153213]
[1747920900308,5.6304,177.59,177.58,0.04153213]
[1747920902205,0.04061556,177.62,177.58,0.04153213]
[1747920902600,153.18,177.72,177.58,0.04153213]
[1747920902901,181.31351135,177.76,177.59,106.98]
[1747920903097,28.11351135,177.72,177.58,1.9734]
[1747920903305,28.11351135,177.68,177.55,153.2]
[1747920903502,153.2,177.67,177.54,1.9422]
[1747920903709,5.6301,177.6,177.59,0.03961615]
[1747920903911,0.03757611,177.62,177.48,155.1734]
[1747920903912,153.23757611,177.62,177.48,155.1734]
[1747920904106,28.11351135,177.59,177.46,2.0115]
[1747920904607,107.0,177.6,177.46,2.0115]
[1747920904905,0.04154695,177.55,177.51,0.0378847]
[1747920905409,5.6326,177.52,177.51,0.0378847]
[1747920905608,0.04154695,177.55,177.51,0.0378847]
[1747920906316,5.6326,177.52,177.51,0.0378847]
[1747920907408,5.6326,177.52,177.51,8.47e-05]
[1747920907610,5.64,177.52,177.3,153.22]
[1747920907911,28.11351135,177.37,177.26,11.81354443]
[1747920908110,172.18,177.36,177.26,6.17294443]
[1747920908307,172.18,177.35,177.24,22.83030255]
[1747920908503,5.6388,177.33,177.24,13.62462499]
[1747920908701,0.03929139,177.31,177.28,0.04163768]
[1747920909615,4.74908529,177.3,177.28,0.04163768]
[1747920910112,4.74908529,177.3,177.24,13.62462499]
[1747920910813,5.6404,177.28,177.24,13.62462499]
[1747920911119,4.74908529,177.3,177.24,13.62462499]
[1747920911309,5.6405,177.28,177.25,2.076e-05]
[1747920911505,4.74908529,177.3,177.25,2.076e-05]
[1747920912112,28.11351135,177.29,177.25,2.076e-05]
[1747920912407,4.74908529,177.3,177.17,12.48549618]
[1747920912614,4.74908529,177.3,177.13,1.9669]
[1747920912615,4.74908529,177.27,177.13,1.9669]
[1747920912908,5.6423,177.22,177.09,0.98196902]
[1747920913115,28.38384286,177.25,177.07,4.0433]
[1747920913421,0.0388856,177.18,177.14,0.03749294]
[1747920913616,0.04300939,177.18,177.14,0.03762892]
[1747920916209,0.04300939,177.18,177.14,5.68212892]
[1747920916416,0.04300939,177.18,177.14,0.03762892]
[1747920916709,5.1497205,177.24,177.15,5.6443]
[1747920916915,5.1497205,177.24,177.16,1.8777]
[1747920917103,5.1497205,177.24,177.07,4.0433]
[1747920917304,28.37792177,177.22,177.07,4.0433]
[1747920917611,5.1497205,177.24,177.0,5.0]
[1747920917612,0.03695904,177.16,177.13,1.121e-05]
[1747920917810,0.1293,177.23,177.01,3.7861]
[1747920918015,28.40169888,177.22,177.01,3.7861]
[1747920918216,0.1293,177.23,177.01,3.7861]
[1747920918217,4.73929126,177.21,177.01,3.7861]
[1747920918714,0.041293,177.13,177.09,0.03725035]
[1747920918908,4.73929126,177.21,177.09,0.03581765]
[1747920919107,4.73929126,177.21,177.08,28.36009021]
[1747920919309,4.73929126,177.21,177.01,3.7861]
[1747920919310,4.73929126,177.21,177.18,5.6433]
[1747920919506,4.73929126,177.21,177.19,2.0813]
[1747920919708,5.1497205,177.24,177.19,2.0813]
[1747920919907,6.86890992,177.27,177.2,0.04305351]
[1747920920108,5.04186205,177.32,177.2,0.04305351]
[1747920920314,5.04186205,177.32,177.2,28.34070124]
[1747920920512,3.73870992,177.35,177.25,28.34070124]
[1747920920811,10.44193166,177.37,177.25,28.34070124]
[1747920921012,7.31193166,177.37,177.36,5.6377]
[1747920921517,1.05253166,177.37,177.36,11.2777]
[1747920922103,3.166e-05,177.37,177.36,11.2777]
[1747920922314,4.61789258,177.41,177.4,5.6364]
[1747920922514,17.42186572,177.46,177.36,5.64]
[1747920922716,17.42186572,177.46,177.34,28.34070124]
[1747920923321,2.2132,177.58,177.39,28.34070124]
[1747920923719,2.2132,177.58,177.43,5.6353]
[1747920923914,2.2132,177.58,177.4,487.2]
[1747920924218,0.03869173,177.51,177.47,0.03749978]
[1747920924415,0.03869173,177.51,177.47,0.03632711]
[1747920926019,5.6339,177.48,177.47,0.03632711]
[1747920926222,0.03869173,177.51,177.47,0.03632711]
[1747920926617,0.03869173,177.51,177.49,5.6335]
[1747920926819,0.03869173,177.51,177.47,0.03632711]
[1747920927921,2.0588,177.62,177.47,5.67632711]
[1747920928121,2.0588,177.62,177.45,28.34070124]
[1747920928321,2.0588,177.62,177.42,1.0857]
[1747920928519,2.0588,177.62,177.43,28.34070124]
[1747920928720,2.0588,177.62,177.53,5.6323]
[1747920928721,5.6307,177.59,177.53,5.6323]
[1747920929023,0.04315112,177.58,177.54,0.03933143]
[1747920929229,0.0403676,177.58,177.54,0.03663029]
[1747920930534,1.9332,177.7,177.54,34.01733153]
[1747920930736,28.34070124,177.82,177.58,28.34070124]
[1747920931036,28.34070124,177.8,177.59,62.0]
[1747920931233,5.9325,177.81,177.62,28.34070124]
[1747920931429,0.03626037,177.73,177.7,0.04236588]
[1747920931631,0.0406061,177.73,177.7,0.03675395]
[1747920931828,5.9325,177.81,177.7,0.03675395]
[1747920932031,3.9401,177.81,177.64,486.94]
[1747920932235,3.9401,177.81,177.67,28.34070124]
[1747920932833,3.9401,177.81,177.64,486.94]
[1747920933025,0.0406903,177.74,177.71,0.03981206]
[1747920933223,0.04331739,177.74,177.71,0.03981206]
[1747920934323,5.6263,177.73,177.71,0.03981206]
[1747920934524,0.04331739,177.74,177.71,0.03981206]
[1747920934925,5.6263,177.72,177.71,0.03981206]
[1747920935128,0.04331739,177.74,177.71,0.03981206]
[1747920935328,0.04331739,177.74,177.71,5.66641206]
[1747920935539,0.04331739,177.74,177.71,0.03981206]
[1747920938336,5.6263,177.72,177.71,0.03981206]
[1747920940636,0.04331739,177.74,177.71,0.03981206]
[1747920942239,4.1019,177.85,177.71,0.03981206]
[1747920942443,4.1019,177.85,177.64,515.28070124]
[1747920943238,5.6243,177.79,177.64,515.28070124]
[1747920943550,0.03853244,177.76,177.73,0.03638804]
[1747920943731,0.04224306,177.76,177.73,0.0397986]
[1747920943931,0.04224306,177.76,177.74,5.6254]
[1747920944140,0.04224306,177.76,177.73,0.0397986]
[1747920945239,0.04224306,177.76,177.73,5.6656986]
[1747920945741,0.04224306,177.76,177.73,0.0397986]
[1747920946241,5.66744306,177.76,177.73,0.0397986]
[1747920946540,0.04224306,177.76,177.73,0.0397986]
[1747920947345,5.66754306,177.76,177.73,0.0397986]
[1747920947541,0.04224306,177.76,177.73,0.0397986]
[1747920948443,0.04224306,177.76,177.73,5.6656986]
[1747920948845,0.04224306,177.76,177.73,0.0397986]
[1747920949446,5.6254,177.75,177.73,0.0397986]
[1747920949747,0.04224306,177.76,177.73,0.0397986]
[1747920950550,5.66754306,177.76,177.73,0.0397986]
[1747920950743,0.04224306,177.76,177.73,0.0397986]
[1747920951244,5.6256,177.75,177.73,0.0397986]
[1747920951547,0.04224306,177.76,177.73,0.0397986]
[1747920951853,40.78781707,291.69,177.73,5.6597986]
[1747920951854,11.2374,177.97,177.73,5.6597986]
[1747920952042,2.0544,177.96,177.78,28.16893557]
[1747920952346,3.9158,177.99,177.83,28.16893557]
[1747920952543,3.9158,177.99,177.91,5.6203]
[1747920952738,3.9158,177.99,177.83,28.16893557]
[1747920952948,0.03857908,177.93,177.89,0.04004958]
[1747920953244,2.0544,178.07,177.89,0.04004958]
[1747920953446,3.8932,178.06,177.83,45.05893557]
[1747920953648,3.8932,178.06,177.87,28.16893557]
[1747920954048,3.8932,178.06,177.87,45.05893557]
[1747920954242,0.03847842,177.98,177.95,0.04103244]
[1747920954550,0.03978031,177.98,177.97,5.6183]
[1747920954749,3.8932,178.06,177.95,0.04054706]
[1747920954945,3.8932,178.06,177.95,62.0]
[1747920955553,1.9423,178.16,177.95,62.0]
[1747920955742,0.03849447,178.07,178.04,0.04118605]
[1747920955950,0.0360703,178.07,177.95,62.0]
[1747920956148,28.16893557,178.15,177.95,62.0]
[1747920956545,5.803,178.16,177.95,62.0]
[1747920956748,5.803,178.16,177.98,28.16893557]
[1747920957043,0.03580208,178.09,178.05,0.0405382]
[1747920957243,0.03580208,178.09,178.05,5.65458253]
[1747920957445,0.03580208,178.09,178.05,0.03898253]
[1747920958454,3.8607,178.16,178.05,0.03898253]
[1747920958657,3.8607,178.16,178.02,513.92893557]
[1747920958848,3.8607,178.16,178.14,5.613]
[1747920959153,1.9968,178.25,178.06,28.16893557]
[1747920959353,0.04211445,178.17,178.14,0.03632739]
[1747920959560,0.03927936,178.17,178.14,0.04231459]
[1747920959947,5.6127,178.16,178.14,0.04231459]
[1747920960152,0.03927936,178.17,178.14,0.04231459]
[1747920960861,0.03927936,178.17,178.02,485.76]
[1747920961053,5.6138,178.12,178.06,5.6153]
[1747920961257,2.0082,178.19,178.02,485.76]
[1747920961557,2.0082,178.19,178.02,513.92893557]
[1747920961753,3.926e-05,178.12,178.09,0.03608956]
[1747920961953,2.0082,178.19,178.09,0.03608956]
[1747920962456,2.0082,178.19,178.02,485.76]
[1747920963252,0.03846121,178.12,178.09,0.03815936]
[1747920963461,0.03846121,178.12,178.02,485.76]
[1747920964564,0.03846121,178.12,178.05,0.04066763]
[1747920964955,0.03846121,178.12,177.93,485.44]
[1747920965257,5.6165,178.03,177.98,5.618]
[1747920965450,28.16893557,178.09,177.93,485.44]
[1747920965654,1.9823,178.02,177.93,485.44]
[1747920965852,0.03752351,177.99,177.96,0.03589983]
[1747920967367,0.03752351,177.99,177.97,5.6184]
[1747920967566,0.03752351,177.99,177.96,0.03589983]
[1747920968066,0.03752351,177.99,177.98,5.6181]
[1747920968666,2.351e-05,177.99,177.98,5.6181]
[1747920969866,2.351e-05,177.99,177.96,0.03589983]
[1747920970257,2.351e-05,177.99,177.86,0.068]
[1747920970458,28.16893557,178.06,177.84,513.56893557]
[1747920971268,5.65734971,177.97,177.93,0.03636521]
[1747920971469,0.03625103,177.97,177.87,5.6215]
[1747920971762,2.0127,177.96,177.87,5.6215]
[1747920971960,2.0127,177.96,177.88,5.6211]
[1747920972166,2.0127,177.96,177.84,485.4]
[1747920972563,0.03968929,177.92,177.88,0.04306398]
[1747920975168,0.03968929,177.92,177.77,20.48746268]
[1747920975362,2.0127,177.96,177.77,20.48746268]
[1747920975668,1.8804,177.95,177.77,20.48746268]
[1747920976265,0.03551805,177.88,177.84,0.04316686]
[1747920976465,0.03551805,177.88,177.77,20.48746268]
[1747920976660,1.8804,177.95,177.83,5.6226]
[1747920976661,1.9768,177.94,177.83,5.6226]
[1747920976862,1.9768,177.94,177.77,20.48746268]
[1747920977476,0.0370734,177.87,177.84,0.0413732]
[1747920977667,0.03794141,177.87,177.84,0.0413732]
[1747920978169,0.03794141,177.87,177.77,20.48746268]
[1747920978365,0.03794141,177.87,177.71,485.54]
[1747920978671,28.16893557,177.88,177.73,5.626]
[1747920979172,0.03893635,177.82,177.79,0.0368809]
[1747920979374,0.03893635,177.82,177.71,485.54]
[1747920979569,28.16893557,177.88,177.71,485.54]
[1747920980371,5.6241,177.79,177.78,0.04309938]
[1747920980573,28.16893557,177.83,177.59,513.80893557]
[1747920980770,1.9032,177.78,177.59,485.64]
[1747920981467,0.03549838,177.7,177.67,0.03660144]
[1747920981671,0.03778204,177.7,177.67,0.03993311]
[1747920981976,0.03778204,177.7,177.69,5.6272]
[1747920983777,0.03778204,177.7,177.67,0.03993311]
[1747920984671,0.03778204,177.7,177.68,5.6273]
[1747920984877,0.03778204,177.7,177.67,0.03993311]
[1747920985077,0.03778204,177.7,177.59,485.64]
[1747920985288,1.998,177.77,177.59,485.64]
[1747920985773,5.6273,177.69,177.64,5.6288]
[1747920985973,5.6273,177.69,177.59,485.64]
[1747920986175,0.04108561,177.66,177.62,0.03872494]
[1747920986376,0.04108561,177.66,177.64,5.6288]
[1747920986678,0.04108561,177.66,177.62,0.03872494]
[1747920986885,0.04108561,177.66,177.63,5.6291]
[1747920987074,0.04108561,177.66,177.62,0.03872494]
[1747920987378,5.6286,177.65,177.62,0.03872494]
[1747920987580,0.04108561,177.66,177.62,0.03872494]
[1747920987981,0.04108561,177.66,177.65,5.6285]
[1747920989583,0.04108561,177.66,177.62,0.03872494]
[1747920990585,0.04108561,177.66,177.63,5.6291]
[1747920990782,0.04108561,177.66,177.62,0.03872494]
[1747920991784,0.04108561,177.66,177.5,486.12]
[1747920991978,28.16893557,177.72,177.5,486.12]
[1747920992173,28.16893557,177.72,177.56,5.6313]
[1747920992485,28.16893557,177.72,177.5,486.12]
[1747920992783,28.16893557,177.72,177.51,28.16893557]
[1747920993084,0.03822144,177.63,177.59,0.036594]
[1747920995287,0.03822144,177.63,177.59,5.666894]
[1747920995585,0.03822144,177.63,177.59,0.036594]
[1747920996574,5.6301,177.6,177.59,0.036594]
[1747920996779,0.03822144,177.63,177.59,0.036594]
[1747920997087,5.6301,177.6,177.59,0.036594]
[1747920997287,5.8166,177.62,177.5,486.12]
[1747920997583,5.8166,177.62,177.42,62.0]
[1747920998186,0.03804475,177.55,177.41,486.34]
[1747920998386,0.04076602,177.5,177.41,486.34]
[1747920998589,0.04076602,177.5,177.49,5.6336]
[1747920998782,0.04076602,177.5,177.41,486.34]
[1747920999590,0.04076602,177.5,177.49,5.6336]
[1747920999888,0.04076602,177.5,177.41,486.34]
[1747921001186,0.04076602,177.5,177.46,5.6343]
[1747921001388,0.04076602,177.5,177.41,486.34]
[1747921001885,0.04076602,177.5,177.49,5.6336]
[1747921002784,0.04076602,177.5,177.41,486.34]
[1747921004491,0.04076602,177.5,177.47,5.6339]
[1747921004695,0.04076602,177.5,177.41,486.34]
[1747921005391,0.04076602,177.5,177.46,5.6343]
[1747921005592,0.04076602,177.5,177.41,486.34]
[1747921006483,0.04076602,177.5,177.44,5.6349]
[1747921006687,0.04076602,177.5,177.37,0.5061]
[1747921006987,0.03597037,177.46,177.37,0.5061]
[1747921007990,0.03597037,177.46,177.37,0.1977]
[1747921008293,0.03597037,177.46,177.41,5.6361]
[1747921008693,0.03597037,177.46,177.38,5.637]
[1747921008892,0.04014545,177.44,177.33,0.196]
[1747921009095,0.03958204,177.4,177.33,0.196]
[1747921009294,0.04225726,177.38,177.31,486.64]
[1747921009892,0.04225726,177.38,177.37,5.6374]
[1747921010906,270.38,177.51,177.43,5.6354]
[1747921011399,270.38,177.51,177.39,5.6365]
[1747921011593,270.38,177.51,177.33,270.38]
[1747921011987,0.03901652,177.44,177.4,0.03722252]
[1747921012193,0.03901652,177.44,177.4,0.03655979]
[1747921012397,0.03901652,177.44,177.31,486.64]
[1747921012598,28.16893557,177.49,177.34,5.6382]
[1747921012799,28.16893557,177.45,177.31,486.64]
[1747921013099,1.9416,177.44,177.31,486.64]
[1747921013299,0.04198073,177.39,177.36,0.02355756]
[1747921013693,5.6374,177.37,177.36,0.02355756]
[1747921013899,0.04198073,177.39,177.26,270.44]
[1747921014104,1.9741,177.38,177.26,270.44]
[1747921014290,1.9741,177.38,177.23,107.4038]
[1747921014494,1.9741,177.38,177.23,0.3438]
[1747921014694,5.6392,177.32,177.23,0.3438]
[1747921014896,0.04209296,177.29,177.23,0.3438]
[1747921015399,0.04209296,177.29,177.28,5.6403]
[1747921016104,0.00279296,177.29,177.28,5.6403]
[1747921017808,263.74,177.53,177.28,263.74]
[1747921018003,3.9066,177.44,177.28,263.74]
[1747921018194,263.74,177.53,177.28,263.74]
[1747921018399,3.8835,177.52,177.31,28.16893557]
[1747921018599,28.16893557,177.5,177.32,107.1]
[1747921018805,5.6367,177.4,177.39,0.03856099]
[1747921019105,0.03682002,177.43,177.38,0.04209296]
[1747921019304,0.03857942,177.42,177.41,5.6361]
[1747921019506,0.03857942,177.42,177.39,0.03959759]
[1747921019905,3.8835,177.52,177.39,0.03959759]
[1747921020109,5.878,177.52,177.34,28.16893557]
[1747921020309,5.878,177.52,177.35,0.4057]
[1747921021004,1.965,177.52,177.42,0.03592863]
[1747921021308,0.0423499,177.49,177.43,432.88]
[1747921021609,6.1009,177.61,177.44,0.03856426]
[1747921021809,6.1009,177.61,177.43,399.04893557]
[1747921022105,4.0691,177.61,177.44,487.08]
[1747921022502,0.04092312,177.54,177.51,0.03628443]
[1747921022701,1.9945,177.61,177.51,0.03628443]
[1747921023600,5.6319,177.55,177.51,0.03628443]
[1747921023906,0.03977689,177.55,177.51,0.03628443]
[1747921024107,0.03977689,177.55,177.53,5.6321]
[1747921024308,0.03977689,177.55,177.51,0.03628443]
[1747921024516,0.03977689,177.55,177.51,263.73628443]
[1747921024812,0.03977689,177.55,177.52,107.1]
[1747921025518,1.9583,177.65,177.52,107.1]
[1747921025709,5.6291,177.64,177.52,107.1]
[1747921025912,3.8959,177.73,177.55,28.16893557]
[1747921026207,5.6276,177.68,177.62,5.6295]
[1747921026415,3.8959,177.73,177.62,107.1]
[1747921026603,0.03938028,177.69,177.68,5.6276]
[1747921026800,7.03808616,177.8,177.66,0.03919329]
[1747921027003,7.03808616,177.8,177.63,28.16893557]
[1747921027210,5.6263,177.72,177.63,28.16893557]
[1747921027516,7.03808616,177.8,177.63,28.16893557]
[1747921027718,0.03591586,177.73,177.71,5.6266]
[1747921027913,5.09778616,177.8,177.71,107.06]
[1747921028212,5.09778616,177.8,177.71,106.39382533]
[1747921028518,5.09778616,177.8,177.64,107.1823]
[1747921028712,28.16893557,177.79,177.44,11.2703]
[1747921028919,0.04060103,177.69,177.66,0.04101821]
[1747921029210,0.04065176,177.69,177.59,4.56775213]
[1747921030325,0.04065176,177.69,177.62,0.03683523]
[1747921030518,5.6292,177.63,177.62,0.03683523]
[1747921030816,0.04279852,177.64,177.62,0.03683523]
[1747921031113,5.6292,177.63,177.62,0.03683523]
[1747921031913,0.0427928,177.65,177.54,107.02]
[1747921032219,256.92,177.7,177.54,107.02]
[1747921032810,5.6295,177.62,177.6,0.03567121]
[1747921033011,0.041729,177.64,177.6,0.03567121]
[1747921033416,5.6292,177.63,177.6,0.03567121]
[1747921033615,0.041729,177.64,177.6,0.03567121]
[1747921034015,5.6296,177.62,177.6,0.03567121]
[1747921034213,0.041729,177.64,177.6,0.03567121]
[1747921034413,0.041729,177.64,177.6,5.66567121]
[1747921034617,0.041729,177.64,177.6,0.03567121]
[1747921035615,5.6292,177.63,177.6,0.03567121]
[1747921035814,0.041729,177.64,177.6,0.03567121]
[1747921036624,0.041729,177.64,177.63,5.6291]
[1747921036815,0.041729,177.64,177.6,0.03567121]
[1747921037710,0.007329,177.64,177.63,5.6291]
[1747921037926,0.007329,177.64,177.6,0.03567121]
[1747921038225,0.007329,177.64,177.61,5.6297]
[1747921038524,0.007329,177.64,177.6,0.03567121]
[1747921040019,5.6294,177.63,177.6,0.03567121]
[1747921040219,0.007329,177.64,177.6,0.03567121]
[1747921040424,1.9616,177.71,177.6,0.03567121]
[1747921040624,5.6273,177.69,177.59,256.88]
[1747921040926,1.9616,177.71,177.59,256.88]
[1747921041128,5.6287,177.65,177.6,5.63]
[1747921041326,0.04166503,177.64,177.61,0.04195639]
[1747921041526,0.04195484,177.64,177.61,0.04195639]
[1747921042719,0.04195484,177.64,177.52,250.06]
[1747921042923,28.16893557,177.66,177.48,4.56775213]
[1747921043116,28.16893557,177.62,177.48,4.56775213]
[1747921043325,5.6325,177.53,177.48,4.56775213]
[1747921043529,4.30728508,177.53,177.48,4.56775213]
[1747921043718,0.03551553,177.52,177.49,0.03753299]
[1747921043915,0.04059527,177.52,177.49,0.03707913]
[1747921044319,0.04059527,177.52,177.37,4.56775213]
[1747921044623,250.1,177.51,177.37,4.56775213]
[1747921044820,4.0833,177.5,177.37,4.56775213]
[1747921045333,4.0833,177.5,177.38,107.0]
[1747921045532,0.04213293,177.45,177.42,0.04296146]
[1747921045729,0.04213293,177.45,177.42,250.14296146]
[1747921045938,0.04213293,177.45,177.44,5.6352]
[1747921046236,3.293e-05,177.45,177.44,5.6352]
[1747921046437,2.02,177.5,177.49,5.6336]
[1747921046635,2.0633,177.58,177.42,250.1]
[1747921046834,2.02,177.57,177.42,278.26893557]
[1747921047035,28.16893557,177.65,177.42,278.26893557]
[1747921047539,0.03615386,177.55,177.52,0.03781205]
[1747921047838,7.493e-05,177.55,177.54,5.632]
[1747921049341,3.9653,177.7,177.54,5.64]
[1747921049636,2.0149,177.69,177.51,250.14]
[1747921050042,2.0569,177.7,177.51,250.14]
[1747921050235,2.0569,177.7,177.59,0.03719998]
[1747921050440,0.03981355,177.66,177.63,0.03979334]
[1747921050643,0.03981355,177.66,177.6,243.62]
[1747921050841,5.6288,177.65,177.6,249.2501]
[1747921051138,0.03981355,177.66,177.6,243.62]
[1747921051547,0.03981355,177.66,177.61,0.04258738]
[1747921052046,5.66821355,177.66,177.61,5.67208738]
[1747921052245,5.66821355,177.66,177.61,0.04258738]
[1747921052445,0.03981355,177.66,177.61,0.04258738]
[1747921053743,0.03981355,177.66,177.65,5.6285]
[1747921054747,1.355e-05,177.66,177.65,5.6285]
[1747921055348,1.355e-05,177.66,177.65,11.2485]
[1747921056347,1.355e-05,177.66,177.65,73.2485]
[1747921056751,1.355e-05,177.66,177.65,5.6285]
[1747921056944,1.355e-05,177.66,177.64,5.6288]
[1747921057144,1.355e-05,177.66,177.62,243.54]
[1747921057551,1.355e-05,177.66,177.64,5.6286]
[1747921058153,1.355e-05,177.66,177.65,5.6285]
[1747921058648,28.16893557,177.79,177.68,5.6274]
[1747921058861,28.16893557,177.82,177.62,243.6585]
[1747921059155,5.6253,177.76,177.62,243.6585]
[1747921059356,28.16893557,177.82,177.62,243.6585]
[1747921059751,0.04151262,177.74,177.7,0.03638023]
[1747921061756,5.6266,177.71,177.7,0.03638023]
[1747921062157,0.04151262,177.74,177.7,0.03638023]
[1747921062664,5.7912,177.84,177.7,0.03638023]
[1747921062859,5.7912,177.84,177.69,235.86]
[1747921063855,5.625,177.76,177.75,9.549e-05]
[1747921065659,11.245,177.76,177.75,9.549e-05]
[1747921066564,5.625,177.76,177.75,9.549e-05]
[1747921067559,5.6248,177.77,177.75,9.549e-05]
[1747921067966,6.67808269,177.86,177.75,9.549e-05]
[1747921068267,6.67808269,177.86,177.73,0.2793]
[1747921068664,5.6237,177.81,177.77,5.6245]
[1747921068863,6.67808269,177.86,177.73,0.2793]
[1747921069064,0.04164574,177.81,177.77,0.04233841]
[1747921069267,6.67808269,177.86,177.77,0.04233841]
[1747921069468,229.5,177.89,177.77,0.04233841]
[1747921069669,6.0802,177.92,177.73,0.2793]
[1747921069871,229.5,177.95,177.74,229.5]
[1747921070161,5.6197,177.93,177.89,5.6207]
[1747921070367,6.67808269,177.96,177.84,336.44]
[1747921070559,6.67808269,177.96,177.85,229.7799]
[1747921071264,6.33368269,177.96,177.95,5.619]
[1747921072263,6.33368269,177.96,177.94,0.03673031]
[1747921072466,0.04183825,177.97,177.94,0.03673031]
[1747921072881,5.619,177.95,177.94,0.03673031]
[1747921076063,5.619,177.95,177.94,3.031e-05]
[1747921076768,11.239,177.95,177.94,3.031e-05]
[1747921077164,11.239,177.95,177.77,32.7366877]
[1747921077165,5.623,177.83,177.8,822.44]
[1747921077473,229.36,177.96,177.8,822.44]
[1747921077668,229.36,177.96,177.84,5.6225]
[1747921078068,229.36,177.96,177.8,822.44]
[1747921078273,5.6215,177.88,177.86,0.03707655]
[1747921078467,0.03861181,177.9,177.86,0.03707655]
[1747921078767,5.6212,177.89,177.86,0.03707655]
[1747921078967,0.03861181,177.9,177.86,0.03707655]
[1747921079870,0.03861181,177.9,177.87,5.6212]
[1747921080066,0.03861181,177.9,177.86,0.03707655]
[1747921080371,5.65951181,177.9,177.86,0.03707655]
[1747921080579,0.03861181,177.9,177.86,0.03707655]
[1747921081073,5.6215,177.87,177.86,0.03707655]
[1747921081970,5.6215,177.87,177.86,7.655e-05]
[1747921082163,11.2415,177.87,177.86,7.655e-05]
[1747921082675,5.6215,177.87,177.86,7.655e-05]
[1747921083170,11.2415,177.87,177.86,7.655e-05]
[1747921083878,5.6239,177.8,177.75,112.4652]
[1747921084175,1.8797,177.88,177.75,106.84]
[1747921084369,5.6247,177.78,177.73,222.68]
[1747921084576,30.04863557,177.88,177.73,222.68]
[1747921084877,5.66082235,177.82,177.79,0.04304706]
[1747921085071,0.03752235,177.82,177.79,0.04304706]